Cogmind - Beta 13 @@@ ROGUE MODE // 2024.06.27 @ 11:27:43 Player: Jazzer Result: Self-destructed Performance ------------- Evolutions (2) 1000 Regions Visited (6) 1200 Robots Destroyed (89) 445 Value Destroyed (3259) 3259 Prototype IDs (24) 480 Alien Tech Used (0) 0 Bonus (760) 760 TOTAL SCORE: 7144 Bonus ------- High Alert Combat Kills 260 Entered Garrisons 200 Aligned with FarCom 300 Cogmind --------- Core Integrity 128/550 Matter 162/300 Energy 150/150 System Corruption 6% Temperature Cool (0) Movement Core (1750) Ox34 Location -8/Garrison Parts ------- > --- POWER (1) -------- Light Angular Momentum Engine > --- PROPULSION (2) --- (None) > --- UTILITY (6) ------ Improved Heat Sink Improved Heat Sink Huge Storage Unit > --- WEAPON (2) ------- Advanced Assault Cannon Advanced Assault Cannon > --- INVENTORY (25) --- Compact Matter Pod (0) Structural Scanner Relay Coupler [NC] (25) Relay Coupler [NC] (25) Relay Coupler [Swarmer] (35) Relay Coupler [Swarmer] (36) Relay Coupler [Swarmer] (33) Relay Coupler [Swarmer] (32) Relay Coupler [Grunt] (22) Relay Coupler [Grunt] (29) Relay Coupler [Brawler] (27) Relay Coupler [Sentry] (20) Relay Coupler [Sentry] (21) Relay Coupler [Specialist] (20) Relay Coupler [Hunter] (14) Plasma Cannon Plasma Cannon Guided Plasma Cannon Advanced Assault Cannon Advanced Assault Cannon Advanced Assault Cannon Advanced Assault Cannon Proton Missile Launcher Improved Datajack Heavy Mace Peak State ------------ > --- POWER ------------ Light Deuterium Engine > --- PROPULSION ------- Armored Huge Wheel > --- UTILITY ---------- Improved Heat Sink Improved Heat Sink Huge Storage Unit Medium Armor Plating Medium Armor Plating Reactive Plating > --- WEAPON ----------- Advanced Assault Cannon Advanced Assault Cannon > --- INVENTORY -------- Compact Wheel Improved Heat Sink Large Matter Pod Compact Matter Pod Structural Scanner Relay Coupler [NC] Relay Coupler [Swarmer] Relay Coupler [Swarmer] Relay Coupler [Swarmer] Plasma Cannon Plasma Cannon Plasma Cannon Guided Plasma Cannon Advanced Assault Cannon Advanced Assault Cannon Advanced Assault Cannon Advanced Assault Cannon Advanced Assault Cannon Proton Missile Launcher Improved Datajack Heavy Mace [Rating: 39] Favorites ----------- Power Light Ion Engine Engine Light Ion Engine Propulsion Compact Wheel Leg Aluminum Leg Wheel Compact Wheel Utility Improved Heat Sink Device Improved Heat Sink Storage Huge Storage Unit Protection Medium Armor Plating Weapon Light Cannon Energy Cannon Advanced Beam Cannon Ballistic Gun Assault Rifle Ballistic Cannon Light Cannon Launcher Rocket Launcher Impact Weapon Heavy Mace Slashing Weapon Axe Build | -11 -10 -10 -10 -9 -8 -8 ------- Run | Yrd Mat Min Exi Min Mat Gar Slots Evolved 4 | . . . . . 4 . Power . | . . . . . . . Propulsion . | . . . . . . . Utility 4 | . . . . . 4 . Weapon . | . . . . . . . Parts Attached 77 | 1 14 10 . 7 23 22 Power 6 | . . 1 . . 3 2 Engine 6 | . . 1 . . 3 2 Core . | . . . . . . . Reactor . | . . . . . . . Propulsion 13 | 1 2 4 . 3 1 2 Treads . | . . . . . . . Leg 1 | 1 . . . . . . Wheel 12 | . 2 4 . 3 1 2 Hover . | . . . . . . . Flight . | . . . . . . . Utility 24 | . 7 1 . . 9 7 Device 11 | . 3 . . . 4 4 Storage 4 | . 3 . . . 1 . Processor . | . . . . . . . Hackware . | . . . . . . . Protection 9 | . 1 1 . . 4 3 Artifact . | . . . . . . . Weapon 34 | . 5 4 . 4 10 11 Energy Gun . | . . . . . . . Energy Cannon 5 | . 1 . . 2 1 1 Ballistic Gun 4 | . 3 . . 1 . . Ballistic Cannon 19 | . 1 3 . 1 6 8 Launcher 1 | . . 1 . . . . Special Weapon . | . . . . . . . Impact Weapon 4 | . . . . . 2 2 Slashing Weapon 1 | . . . . . 1 . Piercing Weapon . | . . . . . . . Special Melee Weapon . | . . . . . . . Unidentified Prototypes 1 | . 1 . . . . . Parts Lost 25 | . . 7 . . 5 13 Power 5 | . . 1 . . 2 2 Propulsion 8 | . . 4 . . 1 3 Utility 8 | . . . . . 1 7 Weapon 4 | . . 2 . . 1 1 Highest Loss Streak 7 | . . 7 . . 3 4 To Critical Strikes . | . . . . . . . Average Slot Usage (%) 92 | . 99 96 100 100 98 74 Engine 10 | . 14 13 14 14 8 6 Wheel 20 | . 27 25 28 28 17 10 Device 13 | . 11 13 . . 26 18 Storage 11 | . 14 14 14 14 8 9 Protection 10 | . 1 . 14 14 17 11 Energy Cannon 4 | . 6 13 . . 3 1 Ballistic Gun 3 | . 15 . . 12 . . Ballistic Cannon 14 | . 5 14 28 15 13 15 Naked Turns . | . . . . . . . Heaviest Build 129 | 13 93 102 102 103 123 129 Greatest Support 32 | 20 26 26 26 32 32 32 Greatest Overweight (x) 34 | . 3 30 3 3 6 34 Average Overweight (x) 2 | . 1 3 3 2 3 4 Largest Inventory Capacity 25 | 8 25 25 25 25 25 25 Average Capacity 23 | 8 15 25 25 25 24 25 Most Carried 25 | 6 18 25 25 25 25 25 Average Carried 21 | 6 10 20 25 24 23 24 Final Capacity 25 | 8 25 25 25 25 25 25 Final Carried 25 | 6 18 25 25 25 25 25 Class Distribution -------------------- 70% | Mutant 29% | Scavenger-Mutant Dominant Class ---------------- Mutant | -10/Materials Mutant | -10/Mines Mutant | -10/Exiles Mutant | -9/Mines Scavenger-Mutant | -8/Materials Mutant | -8/Garrison Resources | -11 -10 -10 -10 -9 -8 -8 ----------- Run | Yrd Mat Min Exi Min Mat Gar Matter Collected 4114 | 210 1008 231 . 672 753 1240 Remotely . | . . . . . . . Salvage Created 2830 | . 769 458 . 294 569 740 Parts 167 | . 52 21 . 21 26 47 Haulers Intercepted 5 | . 2 . . . 3 . Recyclers Shooed 5 | . 1 . . 1 3 . Parts Field Recycled . | . . . . . . . Retrieved Matter . | . . . . . . . Parts Self-Destructed . | . . . . . . . Prevented . | . . . . . . . Kills | -11 -10 -10 -10 -9 -8 -8 ------- Run | Yrd Mat Min Exi Min Mat Gar Combat Hostiles Destroyed 71 | . 14 13 . 4 8 32 Guns 13 | . 10 . . 3 . . Cannons 57 | . 4 12 . 1 8 32 AOE 1 | . . 1 . . . . Classes Destroyed 13 | . 7 4 . . 2 . Worker 5 | . 1 3 . 1 . . Builder 1 | . . 1 . . . . Tunneler 1 | . . 1 . . . . Hauler 5 | . 2 . . . 3 . Recycler 9 | . 1 2 . 3 3 . Operator 1 | . 1 . . . . . Watcher 4 | . 3 . . . 1 . Swarmer 21 | . 3 . . 4 2 12 Grunt 30 | . 11 4 . . 2 13 Sentry 9 | . . 1 . . 2 6 Hunter 2 | . . . . . 1 1 Heavy 1 | . . . . . 1 . Assembled 8 | . . 8 . . . . Best Kill Streak 8 | . 4 8 . 2 5 7 Combat Bots Only 7 | . 3 7 . 2 3 7 Max Kills in Single Turn 2 | . 1 2 . 1 1 1 Gunslinging . | . . . . . . . Exploded 1 | . . 1 . . . . Melee . | . . . . . . . Uniques/NPCs Destroyed . | . . . . . . . Combat | -11 -10 -10 -10 -9 -8 -8 -------- Run | Yrd Mat Min Exi Min Mat Gar Hostile Shots Fired 434 | . 34 52 . 20 41 287 Missed 115 | . 13 13 . 6 8 75 Damage Taken 4220 | . 257 759 . 115 604 2485 Core 627 | . 41 149 . 15 42 380 Absorbed by Shields 1 | . . . . . . 1 Redirected to Shielding 4 | . 4 . . . . . Ignored by Resistances 214 | . . . . . . 214 Regen/Repaired (Parts) 701 | . 90 . . . 611 . Core Remaining (%) 59 | 100 . . . 18 . . Volleys Fired 280 | . 52 40 . 35 46 107 Largest 2 | . 2 2 . 2 2 2 Hottest 128 | . 103 103 . 120 128 128 Shots Fired 549 | . 104 74 . 67 91 213 Gun 93 | . 72 . . 21 . . Cannon 455 | . 32 73 . 46 91 213 Launcher 1 | . . 1 . . . . Special . | . . . . . . . Kinetic 448 | . 86 36 . 64 85 177 Thermal 100 | . 18 37 . 3 6 36 Explosive 1 | . . 1 . . . . Electromagnetic . | . . . . . . . Robot Hit Streak 12 | . 7 7 . 3 5 12 Robot Miss Streak 6 | . 3 4 . 4 5 6 Penetration Max 1 | . . . . . . 1 Secondary Targets . | . . . . . . . Shots Hit Robots 280 | . 59 42 . 18 40 121 Core Hits 127 | . 27 29 . 10 17 44 Critical Kills 1 | . . . . . 1 . Critical Parts Destroyed 1 | . . . . . 1 . Critical Strikes 11 | . . 1 . . 3 7 Destroy 2 | . . . . . 2 . Blast 9 | . . 1 . . 1 7 Melee Attacks 10 | . . . . . 8 2 Impact 9 | . . . . . 7 2 Slashing 1 | . . . . . 1 . Piercing . | . . . . . . . Sneak Attacks . | . . . . . . . Combat Hostiles . | . . . . . . . Follow-up Attacks . | . . . . . . . Damage Inflicted 6472 | . 913 1011 . 343 1155 3050 Guns 675 | . 548 . . 127 . . Cannons 5605 | . 365 819 . 216 1155 3050 Explosions 192 | . . 192 . . . . Melee . | . . . . . . . Ramming . | . . . . . . . Kinetic 4935 | . 635 405 . 278 1078 2539 Thermal 1345 | . 278 414 . 65 77 511 Explosive 192 | . . 192 . . . . Electromagnetic . | . . . . . . . Impact . | . . . . . . . Slashing . | . . . . . . . Piercing . | . . . . . . . Highest Corruption 6 | . . . . . 6 6 Average Corruption 6 | . . . . . 6 6 Corruption Purged . | . . . . . . . Corruption Blocked . | . . . . . . . Effects 96 | . . . . . 32 64 Message Errors 26 | . . . . . 7 19 Matter Fused 24 | . . . . . 8 16 Heat Flow Errors 13 | . . . . . 7 6 Energy Discharges 12 | . . . . . 4 8 Parts Rejected 1 | . . . . . . 1 Parts Fused 1 | . . . . . . 1 Data Loss (minor) 7 | . . . . . 1 6 Data Loss (major) 5 | . . . . . 2 3 Misfires 2 | . . . . . 2 . Alerts 3 | . . . . . . 3 Weapon Failures 2 | . . . . . 1 1 Overload Shots . | . . . . . . . Overflow Damage 89 | . . . . . 14 75 Projectiles 89 | . . . . . 14 75 Explosions . | . . . . . . . Melee . | . . . . . . . Knockbacks 60 | . 3 4 . 2 11 40 Impact . | . . . . . . . Kinetic 53 | . 3 4 . 2 10 34 Secondary 7 | . . . . . 1 6 Self-Inflicted Damage 37 | . . 37 . . . . Shots 1 | . . 1 . . . . Rammed . | . . . . . . . Targets Rammed . | . . . . . . . Kicked . | . . . . . . . Crushed . | . . . . . . . Highest Temperature 412 | . 30 42 . 412 240 256 Average Temperature 80 | . 17 23 . 124 59 62 Received Heat Transfer 1290 | . 72 165 . . 63 990 Effects 3 | . . . . 2 . 1 Energy Bleed 1 | . . . . . . 1 Matter Decay 1 | . . . . 1 . . Damage (minor) 1 | . . . . 1 . . Siege Activations . | . . . . . . . Robots Corrupted . | . . . . . . . Combat Hostiles . | . . . . . . . Parts Fried . | . . . . . . . Impact Corruptions . | . . . . . . . Robots Melted . | . . . . . . . Combat Hostiles . | . . . . . . . Parts Melted 3 | . . 2 . . . 1 Heat Transferred 2531 | . 481 740 . 160 150 1000 Parts Sabotaged . | . . . . . . . Parts Stolen . | . . . . . . . Parts Stripped . | . . . . . . . Power Chain Reactions . | . . . . . . . Alert | -11 -10 -10 -10 -9 -8 -8 ------- Run | Yrd Mat Min Exi Min Mat Gar Peak Influence 1100 | . 260 94 . 182 195 1100 Initial 39 | . . 39 . . 1 5 Average 221 | . 124 35 . 25 45 618 Maximum Alert Level 4 | . 1 . . . . 4 Low Security (%) 71 | 100 82 100 . 100 100 12 Level 1 4 | . 17 . . . . 5 Level 2 12 | . . . . . . 42 Level 3 10 | . . . . . . 34 Level 4 1 | . . . . . . 4 Level 5 . | . . . . . . . High Security . | . . . . . . . Max Security . | . . . . . . . Squads Dispatched 10 | . 3 . . 1 6 . Investigation 6 | . 2 . . 1 3 . Extermination . | . . . . . . . Reinforcement 4 | . 1 . . . 3 . Assault . | . . . . . . . Garrison . | . . . . . . . Intercept . | . . . . . . . Searches Triggered . | . . . . . . . Construction Impeded . | . . . . . . . Haulers Reinforced . | . . . . . . . Active Scanning Responses . | . . . . . . . Cargo Convoy Interrupts . | . . . . . . . Stealth | -11 -10 -10 -10 -9 -8 -8 --------- Run | Yrd Mat Min Exi Min Mat Gar Distress Signals 4 | . 1 . . . 3 . Communications Jammed . | . . . . . . . Distress Signals . | . . . . . . . Times Spotted 110 | . 21 31 . 8 15 35 Peak Tracking Total 15 | . 4 15 . 4 4 7 Tactical Retreats 10 | . . . . 2 5 3 Traps | -11 -10 -10 -10 -9 -8 -8 ------- Run | Yrd Mat Min Exi Min Mat Gar Traps Triggered 13 | . 2 . . . 1 10 Indirectly . | . . . . . . . Trap Hack Attempts . | . . . . . . . Triggered . | . . . . . . . Disarmed . | . . . . . . . Reprogrammed . | . . . . . . . Reused . | . . . . . . . Traps Extracted . | . . . . . . . Installed . | . . . . . . . Triggered . | . . . . . . . Most Traps Carried 4 | . . 4 4 4 4 . Machines | -11 -10 -10 -10 -9 -8 -8 ---------- Run | Yrd Mat Min Exi Min Mat Gar Machines Disabled 8 | . 1 . . . 1 6 Max in Single Turn 1 | . 1 . . . 1 1 Garrison Relay 6 | . . . . . . 6 Machines Repaired . | . . . . . . . Machines Dismantled . | . . . . . . . Machines Sabotaged . | . . . . . . . Overloaded Fab Kills . | . . . . . . . Hacking | -11 -10 -10 -10 -9 -8 -8 --------- Run | Yrd Mat Min Exi Min Mat Gar Machines Accessed 28 | . 9 . 3 4 12 . Terminals 19 | . 8 . . 3 8 . Fabricators . | . . . . . . . Repair Stations 3 | . 1 . . . 2 . Recycling Units . | . . . . . . . Scanalyzers 1 | . . . . . 1 . Garrison Access 1 | . . . . . 1 . Total Hacks 107 | . 30 . 33 8 36 . Successful 73 | . 18 . 33 4 18 . Failed 33 | . 11 . . 4 18 . Catastrophic 2 | . 1 . . . 1 . Database Lockouts 1 | . 1 . . . . . Manual 41 | . 24 . 1 . 16 . Terminals 53 | . 24 . . 7 22 . Fabricators . | . . . . . . . Repair Stations 17 | . 6 . . . 11 . Recycling Units . | . . . . . . . Scanalyzers 2 | . . . . . 2 . Garrison Access 1 | . . . . . 1 . Terminal Hacks 52 | . 9 . 33 4 6 . Record 32 | . . . 32 . . . Part Schematic 1 | . . . . . 1 . Robot Analysis 2 | . 2 . . . . . Open Door 1 | . . . . 1 . . Branch Access Points 1 | . . . . . 1 . Unreport Threat 3 | . . . . . 3 . Locate Traps 3 | . 3 . . . . . Dispatch Records 3 | . 1 . . 2 . . Recall Investigation 1 | . 1 . . . . . Hauler Manifests 2 | . 1 . . . 1 . Zone Layout 2 | . 1 . . 1 . . Derelict Proto ID Bank 1 | . . . 1 . . . Fabricator Hacks . | . . . . . . . Repair Station Hacks 12 | . 5 . . . 7 . Scan Component 7 | . 3 . . . 4 . Repair 5 | . 2 . . . 3 . Recycling Unit Hacks . | . . . . . . . Scanalyzer 1 | . . . . . 1 . Insert Component 1 | . . . . . 1 . Garrison Access Hacks 1 | . . . . . 1 . Unlock Access 1 | . . . . . 1 . Unauthorized Hacks 7 | . 4 . . . 3 . Terminals 7 | . 4 . . . 3 . Botnet 6 | . 3 . . . 3 . Disrupt 1 | . 1 . . . . . Fabricators . | . . . . . . . Repair Stations . | . . . . . . . Recycling Units . | . . . . . . . Scanalyzers . | . . . . . . . Garrison Access . | . . . . . . . Data Cores Recovered . | . . . . . . . Used . | . . . . . . . Hacking Detections 20 | . 8 . . 2 10 . Full Trace Events 3 | . 1 . . . 2 . Feedback Events . | . . . . . . . Feedback Blocked . | . . . . . . . Robot Schematics Acquired . | . . . . . . . Robots Built . | . . . . . . . Authchips . | . . . . . . . Time . | . . . . . . . Total Robot Build Rating . | . . . . . . . Part Schematics Acquired 1 | . . . . . 1 . Parts Built . | . . . . . . . Authchips . | . . . . . . . Time . | . . . . . . . Total Part Build Rating . | . . . . . . . Parts Repaired 5 | . 2 . . . 3 . Time 142 | . 52 . . . 90 . Parts Recycled . | . . . . . . . Recycled Matter . | . . . . . . . Retrieved Matter . | . . . . . . . Retrieved Components . | . . . . . . . Parts Scanalyzed . | . . . . . . . Part Schematics Acquired . | . . . . . . . Parts Damaged . | . . . . . . . Bothacking | -11 -10 -10 -10 -9 -8 -8 ------------ Run | Yrd Mat Min Exi Min Mat Gar Used RIF Installer . | . . . . . . . Robots Hacked . | . . . . . . . Non-combat . | . . . . . . . Combat . | . . . . . . . Robot Hacks Applied . | . . . . . . . Relay Couplers Released 23 | . . . . . . 23 Machine Destruction 23 | . . . . . . 23 Fabnet Peak Effective % . | . . . . . . . Robots Rewired . | . . . . . . . Allies Hacked . | . . . . . . . Hacks Repelled . | . . . . . . . Allies | -11 -10 -10 -10 -9 -8 -8 -------- Run | Yrd Mat Min Exi Min Mat Gar Total Allies . | . . . . . . . Largest Group . | . . . . . . . Highest-Rated Group . | . . . . . . . Highest-Rated Ally . | . . . . . . . Total Orders . | . . . . . . . Ally Attacks . | . . . . . . . Total Damage . | . . . . . . . Kills . | . . . . . . . Allies Corrupted . | . . . . . . . Allies Melted . | . . . . . . . Intel | -11 -10 -10 -10 -9 -8 -8 ------- Run | Yrd Mat Min Exi Min Mat Gar Robot Analysis Total 2 | . 2 . . . . . Derelict Logs Recovered 3 | . . 2 . 1 . . Drone Launches . | . . . . . . . Drone Recoveries . | . . . . . . . Exploration | -11 -10 -10 -10 -9 -8 -8 ------------- Run | Yrd Mat Min Exi Min Mat Gar Turns Passed 7338 | 17 1023 1174 708 998 1460 1958 Spaces Moved 4091 | 7 683 703 524 658 769 747 Core 22 | . . 1 . . . 21 Treads . | . . . . . . . Legs 7 | 7 . . . . . . Wheels 4062 | . 683 702 524 658 769 726 Hover . | . . . . . . . Flight . | . . . . . . . Fastest Speed 90 | 120 90 135 135 130 100 145 Average Speed 143 | 120 105 142 135 130 145 194 Slowest Speed 1750 | 120 135 1550 135 135 190 1750 Overloaded Moves . | . . . . . . . Propulsion Burnouts . | . . . . . . . Robots Hopped . | . . . . . . . Cave-ins Triggered 1 | . . . . . 1 . Exploration Rate (%) 76 | 2 92 98 92 98 84 70 Regions Visited 6 Branch Regions 3 Pre-discovered Areas 2 | . . . 1 1 . . Known Exits Taken 1 | . . . . . 1 . Unknown Exits Taken 5 | 1 1 1 1 1 . . Scrap Searched 2 | . . 1 . 1 . . Spaces Dug 20 | . . 2 . 8 10 . Terrain Destroyed 75 | . . 20 . 10 44 1 Melee 8 | . . . . . 8 . Projectile 55 | . . 8 . 10 36 1 AOE 12 | . . 12 . . . . Terrain Rammed . | . . . . . . . Walls Destroyed . | . . . . . . . Machines Disabled . | . . . . . . . Actions | -11 -10 -10 -10 -9 -8 -8 --------- Run | Yrd Mat Min Exi Min Mat Gar Total 5001 | 15 879 799 526 734 1009 1039 Wait 305 | 7 99 32 . 13 114 40 Move 4086 | 6 682 702 523 657 769 747 Hop . | . . . . . . . Pick Up 107 | . 20 14 1 9 37 26 Fast Attach 16 | 1 4 1 . . 6 4 Attach 22 | . . 6 . . 7 9 Detach 1 | . . . . . . 1 Swap 41 | . 10 3 . 7 10 11 Drop 59 | 1 12 1 1 13 12 19 Fire 280 | . 52 40 . 35 46 107 Melee 10 | . . . . . 8 2 Ram . | . . . . . . . Kick . | . . . . . . . Crush . | . . . . . . . Escape Stasis 72 | . . . . . . 72 Rewire 2 | . . . 1 . . 1 Trap . | . . . . . . . Miscellaneous . | . . . . . . . Route ------- -11/Scrapyard -10/Materials (discovered 5 exits: [*Mat x3] / [*Min x2]) -10/Mines (discovered 3 exits: [*Mat x2] / *Exi) -10/Exiles (discovered 2 exits: *Min x2) -9/Mines (discovered 2 exits: *Mat x2) -8/Materials (discovered 2 exits: Fac / Gar) -8/Garrison (discovered 4 exits: [*Mat x4]) History --------- Turn | Location | Event 10 | -11/Scrapyard | Discovered new exit (range 3) 18 | -11/Scrapyard | Entered Materials 324 | -10/Materials | Build established: Mutant 378 | -10/Materials | Repaired Assault Rifle 405 | -10/Materials | Repaired Assault Rifle 470 | -10/Materials | Discovered new exit (range 10) 561 | -10/Materials | Central database locked down 602 | -10/Materials | Discovered new exit (range 15) 732 | -10/Materials | Discovered new exit (range 5) 737 | -10/Materials | Discovered new exit (range 12) 820 | -10/Materials | Discovered new exit (range 7) 1041 | -10/Materials | Entered Mines 1093 | -10/Mines | Received a Rocket Launcher from a helpful Derelict 1228 | -10/Mines | Assembled infested the area 1233 | -10/Mines | Assisted by a Guerilla fighting off Assembled 1277 | -10/Mines | Core integrity fell below 50% 1329 | -10/Mines | Lost 7 parts (1p4n2w) 1345 | -10/Mines | Destroyed 7 combat bots 1547 | -10/Mines | Discovered new exit (range 5) 1592 | -10/Mines | Deemed a non-threat by the Exiles lab entrance 1592 | -10/Mines | Discovered new exit (range 5) 1777 | -10/Mines | Found a hidden stash of uninstalled traps 1894 | -10/Mines | Learned Materials terminal intel 1937 | -10/Mines | Discovered new exit (range 5) 2117 | -10/Mines | Joined a pair of Derelicts in attacking an 0b10 outpost 2132 | -10/Mines | Learned Materials stockpile data 2215 | -10/Mines | Entered Exiles 2234 | -10/Exiles | Discovered new exit (range 15) 2271 | -10/Exiles | Met 8R-AWN 2294 | -10/Exiles | Met EX-HEX 2357 | -10/Exiles | Met EX-BIN 2372 | -10/Exiles | Aligned with FarCom system 2373 | -10/Exiles | Given EX-Vault access code 2419 | -10/Exiles | Opened EX-Vault 2430 | -10/Exiles | Found Gui. Plasma Cannon 2461 | -10/Exiles | Warned to stay clear of 0b10 Research branches 2496 | -10/Exiles | Met EX-DEC 2542 | -10/Exiles | Visited The Gauntlet 2846 | -10/Exiles | Learned location of Zion (-7) 2911 | -10/Exiles | Discovered new exit (range 10) 2923 | -10/Exiles | Left Exiles lab with Gui. Plasma Cannon 2923 | -10/Exiles | Entered Mines 2926 | -9/Mines | Discovered new exit (range 15) 3064 | -9/Mines | Core integrity fell below 20% 3269 | -9/Mines | Discovered new exit (range 4) 3480 | -9/Mines | Learned location of Storage (-9) 3620 | -9/Mines | Learned 2 Materials zone layouts 3831 | -9/Mines | Met a Derelict shopkeep closing up shop 3921 | -9/Mines | Entered Materials 3921 | -8/Materials | Evolved 4 slots: Utility x4 3922 | -8/Materials | Identified exit to Factory 3924 | -8/Materials | Loaded intel: 12 terminal locations 4190 | -8/Materials | Crushed by falling debris 4218 | -8/Materials | Build established: Scavenger-Mutant 4221 | -8/Materials | Lost 3 parts (1p1n1w) 4298 | -8/Materials | Repaired Huge Storage Unit 5157 | -8/Materials | Repaired Med. Armor Plating 5190 | -8/Materials | Repaired Med. Armor Plating 5381 | -8/Materials | Identified exit to Garrison 5381 | -8/Materials | Entered Garrison 5405 | -8/Garrison | Triggered checkpoint 5423 | -8/Garrison | Triggered checkpoint 5465 | -8/Garrison | Garrison Relay disabled 5591 | -8/Garrison | Triggered checkpoint 5666 | -8/Garrison | Destroyed 7 combat bots 5667 | -8/Garrison | Garrison Relay disabled 5709 | -8/Garrison | Discovered new exit (range 5) 5733 | -8/Garrison | Triggered checkpoint 5917 | -8/Garrison | Triggered checkpoint 6116 | -8/Garrison | Discovered new exit (range 11) 6177 | -8/Garrison | Triggered checkpoint 6183 | -8/Garrison | Garrison Relay disabled 6220 | -8/Garrison | Lost 4 parts (1n3u) 6305 | -8/Garrison | Triggered checkpoint 6321 | -8/Garrison | Triggered checkpoint 6345 | -8/Garrison | Garrison Relay disabled 6414 | -8/Garrison | Discovered new exit (range 10) 6445 | -8/Garrison | Triggered checkpoint 6500 | -8/Garrison | Build established: Mutant 6511 | -8/Garrison | Triggered checkpoint 6558 | -8/Garrison | Garrison Relay disabled 6665 | -8/Garrison | Triggered checkpoint 6731 | -8/Garrison | Triggered checkpoint 6745 | -8/Garrison | Discovered new exit (range 15) 6777 | -8/Garrison | Core integrity fell below 50% 6901 | -8/Garrison | Garrison Relay disabled 7339 | -8/Garrison | Self-destructed Last Messages --------------- 06996_ Acquired 6 matter. 07001_ System corrupted: Energy discharge (-57). 07061_ System corrupted: Energy discharge (-43). 07078_ System corrupted: Energy discharge (-54). 07101_ System corrupted: Matter fused (-5). 07145_ System corrupted: Energy discharge (-49). 07181_ ALERT: Garrison interior compromised. 07223_ Critical hit (Burn: +37). 07226_ System corrupted: Component data lost. 07226_ Dropped Com. Matter Pod. 07227_ Extracted 150 matter. 07230_ Y-45 Defender destroyed. 07230_ RIF Installer disabled. 07233_ Acquired Com. Matter Pod. 07234_ Acquired 36 matter. 07243_ System corrupted: Matter fused (-6). 07259_ System corrupted: Component data lost. 07269_ Acquired 7 matter. 07290_ System corrupted: Energy discharge (-51). 07323_ System corrupted: Matter fused (-5). Map ----- +----------------------------------------------------+ | | | | | | | | | ?????????????????????????????????????????????????? | | ?????????????????????????????????????????????????? | | ?????????????????????????????????????????????????? | | ?????????????????????????????????????????????????? | | ?????????????????????????????????????????????????? | | ?????????????????????????????????????????????????? | | ?????????????????????????????????????????????????? | | ?????????????????????????????????????????????????? | | ??####???????????????????????????????????????????? | | ??#""#???????????????????????????????????????????? | | ??# T#???????????????????????????????????????????? | | ??# "#???????????????????????????????????????????? | | ??# ##???????????????????????????????????????????? | | ??# #????????????????????????????????????????????? | | ??# ########?????????????????????????????????????? | | ??# ## """#?????????????????????????????????????? | | ?## ### ######????????????????####?????????????? | | ?# ! #??????????????### #?????????????? | | ?# #??????????????#"# #?????????????? | | ?#^ ###%% ######??????????????#"! #?????????????? | | ?#^ #?#%% #????????????#####??# #?????????????? | | ## #?#####????????????#"@"#??#"! ^#?????????????? | | #??????????????????#" "#??#"# #?????????????? | | #??????????????????#" "#??### #?????????????? | | #??????????????????#" "#????# #?????????????? | | # #??????????????????# =^#????# #?????????????? | | # #??????????????????##!##??### #?????????????? | | # #???????????????????# ##### % #?????????????? | | # #???????????????????# + %#?????????????? | | # #???????????????????# ##### %#?????????????? | | # #???????????????????# #???### #?????????????? | | # #?????????????????###;####### %############### | | # =#?????????????????# "%" | | # ![#?????????????????# | | #?????????????????# ! | | #?????????????????# ######################## | | # #?????????????????# ##?????????????????????? | | # #?????????????????# T#?????????????????????? | | # #?????????????????# ##?????????????????????? | | # #?????????????????# #??????????????????????? | | # #?????????????????# #??????????????????????? | | # #?????????????????# #??????????????????????? | | # #############""""## #??????????????????????? | | # #??????????????????????? | | # #??????????????????????? | | # #??????????????????????? | +----------------------------------------------------+ Best States ------------- Heat Dissipation 73 Energy Generation 18 Energy Capacity 275 Matter Stores 300 Matter Capacity 300 Sight Range 16 Robot Scan Range 14 Terrain Scan Density 10 Armor Coverage 600 Resistance: KI 20 Propulsion Shielding 33 Evasion (%) 42 Item Schematics ----------------- Cooling System | -8/Materials | Hacked Robot Schematics ------------------ None Fabricated ------------ Nothing Alien Tech Used ----------------- None Achievements -------------- Quantum Hacking Challenges ------------ None Game ------ Seed AssaultIntegratedMultirail Manual? 0 Play Time 01:52:09 Cumulative 279.9 hours Start 2024.06.27 @ 09:20:13 End 2024.06.27 @ 11:27:43 Sessions 1 Manual Loads 0 Difficulty Rogue Special Mode None Game No. 156 Rogue 156 Adventurer 0 Explorer 0 Win Type - Total 2 Types 2/0/0/0/0/0/0/0/0 Lore% 49 Gallery% 59 Achievement% 34 Wizard Run 0 Options --------- Layout 0 ASCII 0 Keyboard 1 Movement Numpad Keybinds 0 Fullscreen 2 Font 18/SmallcapsGlow Map View 76x50 Zoom Use 0% Tactical HUD 1 Map Filters NONE Filters NONE Steam 1 RUN: 24593364-0ffa-438d-be4f-94c0cc39bd85